bitfinex/quotes_BTCUSD_20240703
["timestamp","ask_amount","ask_price","bid_price","bid_amount"]
[1719971661420,1.2890627,62003.0,62002.0,0.0004]
[1719971661622,1.2890627,62003.0,62002.0,0.0599]
[1719971661822,1.2890627,62003.0,62002.0,0.0004]
[1719971662664,1.0310107,62003.0,62002.0,0.0004]
[1719971662837,0.98747885,62003.0,62002.0,0.0004]
[1719971664150,0.9874787,62003.0,62002.0,0.0004]
[1719971664364,1.1502787,62003.0,62002.0,0.0004]
[1719971665401,1.29516198,62003.0,62002.0,0.0004]
[1719971665996,1.13236198,62003.0,62002.0,0.0004]
[1719971666399,0.9874787,62003.0,62002.0,0.0004]
[1719971667211,1.0213811,62003.0,62002.0,0.0004]
[1719971667417,1.00798814,62003.0,62002.0,0.0004]
[1719971667648,1.02138083,62003.0,62002.0,0.0004]
[1719971668894,1.02138083,62003.0,62002.0,0.001324]
[1719971669297,1.28027283,62003.0,62002.0,0.001324]
[1719971669502,1.59967283,62003.0,62002.0,0.001324]
[1719971669919,1.28057283,62003.0,62002.0,0.001324]
[1719971670138,1.33885444,62003.0,62002.0,0.001324]
[1719971670585,1.4995175,62003.0,62002.0,0.001324]
[1719971671086,1.48582481,62003.0,62002.0,0.001324]
[1719971671292,1.4989498,62003.0,62002.0,0.001324]
[1719971672252,1.33858674,62003.0,62002.0,0.001324]
[1719971672451,1.33828674,62003.0,62002.0,0.001324]
[1719971673785,1.26688014,62003.0,62002.0,0.001324]
[1719971673990,1.33826323,62003.0,62002.0,0.001324]
[1719971674191,1.33826478,62003.0,62002.0,0.001324]
[1719971676600,1.49892784,62003.0,62002.0,0.001324]
[1719971676801,1.75697984,62003.0,62002.0,0.001324]
[1719971677089,1.80764489,62003.0,62002.0,0.001324]
[1719971677293,1.80760757,62003.0,62002.0,0.001324]
[1719971677852,1.80730757,62003.0,62002.0,0.001324]
[1719971678051,1.75694252,62003.0,62002.0,0.001324]
[1719971679291,1.59657946,62003.0,62002.0,0.001324]
[1719971679699,1.59627946,62003.0,62002.0,0.001324]
[1719971680124,1.59657946,62003.0,62002.0,0.001324]
[1719971680335,1.52523214,62003.0,62002.0,0.001324]
[1719971680535,1.59606395,62003.0,62002.0,0.001324]
[1719971681060,1.61569865,62003.0,62002.0,0.001324]
[1719971681673,1.77881749,62003.0,62002.0,0.001324]
[1719971681882,1.84401749,62003.0,62002.0,0.001324]
[1719971682317,1.84431749,62003.0,62002.0,0.001324]
[1719971683499,1.93386755,62003.0,62002.0,0.001324]
[1719971683617,2.00522904,62003.0,62002.0,0.001324]
[1719971683813,1.7707299,62003.0,62002.0,0.001324]
[1719971684040,2.0052424,62003.0,62002.0,0.001324]
[1719971685856,1.84208402,62003.0,62002.0,0.001324]
[1719971686720,1.7707299,62003.0,62002.0,0.001324]
[1719971686921,1.84176481,62003.0,62002.0,0.001324]
[1719971688171,1.97886481,62003.0,62002.0,0.001324]
[1719971688290,2.99721561,62003.0,62002.0,1e-06]
[1719971688491,3.23058066,62003.0,62002.0,1e-06]
[1719971688700,3.23058066,62003.0,61986.0,0.1491]
[1719971688701,0.903413,61987.0,61986.0,0.1491]
[1719971688917,1.08200125,61987.0,61986.0,0.1491]
[1719971690000,1.22701229,61987.0,61986.0,0.1491]
[1719971690414,1.47379352,61987.0,61986.0,0.1511]
[1719971690596,1.47379352,61987.0,61986.0,0.002]
[1719971691164,0.903472,61983.0,61982.0,0.2106]
[1719971691362,0.903472,61983.0,61982.0,0.3708988]
[1719971691363,1.08195807,61983.0,61982.0,0.3708988]
[1719971692524,1.08195807,61983.0,61982.0,0.3113988]
[1719971692890,1.08195807,61983.0,61982.0,0.3708988]
[1719971693296,1.08295777,61983.0,61982.0,0.3768988]
[1719971693698,1.08395777,61983.0,61982.0,0.3788988]
[1719971696164,1.08395777,61983.0,61982.0,0.0675]
[1719971696583,1.08385495,61983.0,61982.0,0.0675]
[1719971696785,1.070372,61983.0,61982.0,0.5672988]
[1719971696940,1.08375523,61983.0,61982.0,0.5672988]
[1719971697154,1.070372,61983.0,61982.0,0.5672988]
[1719971698138,1.08375553,61983.0,61982.0,0.5672988]
[1719971698344,1.08375558,61983.0,61982.0,0.5672988]
[1719971698672,1.08375558,61983.0,61982.0,0.2181]
[1719971698874,1.08375558,61983.0,61982.0,0.1586]
[1719971699713,1.08375925,61983.0,61982.0,0.1586]
[1719971700306,1.08375925,61983.0,61982.0,0.008]
[1719971701994,1.070372,61983.0,61982.0,0.008]
[1719971702309,1.08376261,61983.0,61982.0,0.008]
[1719971702914,1.08366261,61983.0,61982.0,0.008924]
[1719971703149,1.65439761,61983.0,61982.0,0.008924]
[1719971703567,1.68231145,61983.0,61982.0,0.008924]
[1719971703765,1.8272491,61983.0,61982.0,0.008924]
[1719971704466,1.7069415,61983.0,61982.0,0.008924]
[1719971704677,1.7072415,61983.0,61982.0,0.008924]
[1719971704847,1.85217915,61983.0,61982.0,0.008924]
[1719971705232,1.38125089,61983.0,61982.0,0.008924]
[1719971705438,1.53939946,61983.0,61982.0,0.008924]
[1719971705655,1.39454015,61983.0,61982.0,0.008924]
[1719971706102,1.39454015,61983.0,61971.0,0.002924]
[1719971706103,0.0003,61979.0,61971.0,0.002924]
[1719971706273,1.212233,61972.0,61971.0,0.002924]
[1719971706476,1.58380326,61972.0,61971.0,0.002924]
[1719971707289,1.58380326,61972.0,61971.0,0.004924]
[1719971707467,1.58380326,61972.0,61971.0,0.002924]
[1719971707669,1.64900326,61972.0,61971.0,0.003924]
[1719971707877,1.75000326,61972.0,61971.0,0.003924]
[1719971708093,1.61320326,61972.0,61971.0,0.003924]
[1719971708636,1.61320226,61972.0,61971.0,0.003924]
[1719971708746,1.57427871,61972.0,61971.0,0.002924]
[1719971708950,0.1381,61967.0,61946.0,0.0595]
[1719971709155,0.1381,61967.0,61925.0,0.1593]
[1719971709156,0.3264,61947.0,61925.0,0.1593]
[1719971709397,0.3264,61947.0,61870.0,0.50310828]
[1719971709613,0.3264,61947.0,61821.0,2.62825063]
[1719971709614,0.46,61875.0,61858.0,0.21389959]
[1719971709822,0.46,61875.0,61820.0,0.01943819]
[1719971709823,0.58,61843.0,61820.0,0.01943819]
[1719971710043,0.58,61843.0,61787.0,0.1630117]
[1719971710044,0.858866,61808.0,61798.0,0.06093669]
[1719971710248,0.858866,61808.0,61760.0,0.01591472]
[1719971710249,0.24800585,61799.0,61760.0,0.01591472]
[1719971710462,0.24800585,61799.0,61722.0,0.11993062]
[1719971710463,1.506867,61751.0,61722.0,0.11993062]
[1719971710670,1.506867,61751.0,61701.0,0.26897757]
[1719971710671,12.52665022,61751.0,61750.0,0.463061]
[1719971710892,12.52665022,61751.0,61701.0,0.26897757]
[1719971710893,0.934264,61713.0,61712.0,0.03]
[1719971711102,0.934264,61713.0,61665.0,0.5]
[1719971711103,9.02702187,61713.0,61665.0,0.5]
[1719971711303,0.847379,61668.0,61667.0,0.0262]
[1719971711516,9.63990679,61668.0,61667.0,0.01]
[1719971711720,0.19989939,61665.0,61653.0,0.26964585]
[1719971712006,0.19989939,61665.0,61615.0,0.01424838]
[1719971712007,0.129836,61616.0,61615.0,0.01424838]
[1719971712219,0.129836,61616.0,61579.0,0.03369757]
[1719971712220,0.675,61595.0,61594.0,0.05204923]
[1719971712439,0.80491,61581.0,61579.0,0.03369757]
[1719971712644,7.63970796,61581.0,61579.0,0.03369757]
[1719971712852,0.19979939,61576.0,61524.0,0.07397445]
[1719971713053,0.04635991,61558.0,61524.0,0.07397445]
[1719971713273,0.04635991,61558.0,61524.0,0.13003]
[1719971713274,1.4305,61557.0,61524.0,0.13003]
[1719971713474,0.04813162,61557.0,61545.0,0.016]
[1719971713684,0.03312822,61547.0,61545.0,0.011]
[1719971713888,4.03942,61546.0,61545.0,0.011]
[1719971714092,0.25951563,61501.0,61500.0,0.1295]
[1719971714247,0.25951563,61501.0,61465.0,0.130153]
[1719971714248,1.0255,61500.0,61465.0,0.130153]
[1719971714448,1.0255,61500.0,61461.0,0.0011]
[1719971714449,0.64686287,61499.0,61498.0,0.25056337]
[1719971714653,0.83331096,61500.0,61477.0,0.011]
[1719971714857,0.83331096,61500.0,61348.0,0.00714877]
[1719971714858,0.1712,61444.0,61332.0,0.08149916]
[1719971715081,1.10891068,61446.0,61225.0,0.38797242]
[1719971715082,0.03312822,61427.0,61366.0,0.07971381]
[1719971715362,0.1901323,61409.0,61367.0,0.0525]
[1719971715568,1.023,61408.0,61367.0,0.00325273]
[1719971715794,0.3275,61397.0,61396.0,0.1401687]
[1719971715995,0.2115,61397.0,61389.0,0.0098677]
[1719971716194,0.387,61413.0,61360.0,1.556]
[1719971716195,0.04621197,61407.0,61396.0,0.00355767]
[1719971716413,0.6375,61418.0,61383.0,0.260654]
[1719971716615,0.1851323,61408.0,61397.0,0.01975767]
[1719971716857,0.1851323,61408.0,61363.0,0.260741]
[1719971716858,0.387,61407.0,61363.0,0.0148677]
[1719971717122,0.2115,61411.0,61392.0,0.0148677]
[1719971717318,0.2115,61411.0,61387.0,0.13032]
[1719971717319,0.1499,61405.0,61387.0,0.13032]
[1719971717432,0.1851323,61397.0,61379.0,0.0162]
[1719971717636,0.24045462,61380.0,61359.0,0.56104464]
[1719971717997,0.24045462,61380.0,61376.0,0.48093494]
[1719971717998,0.00439887,61379.0,61376.0,0.48093494]
[1719971718199,0.00439887,61379.0,61378.0,0.0148677]
[1719971718407,1.08852149,61408.0,61404.0,0.130282]
[1719971718613,1.08012345,61408.0,61400.0,0.260582]
[1719971718827,1.08012345,61408.0,61407.0,0.65139]
[1719971719041,1.08012345,61408.0,61407.0,1.204334]
[1719971719234,0.2,61487.0,61407.0,1.204334]
[1719971719235,0.2,61467.0,61424.0,0.26048]
[1719971719442,0.08015582,61468.0,61434.0,0.130221]
[1719971719648,0.28015582,61468.0,61434.0,0.40881243]
[1719971719851,0.2,61476.0,61449.0,0.260377]
[1719971720053,0.1759,61493.0,61450.0,0.0151]
[1719971720054,0.08015582,61484.0,61450.0,0.0151]
[1719971720264,0.11910418,61486.0,61463.0,0.08015582]
[1719971720465,0.2,61513.0,61463.0,0.08015582]
[1719971720466,0.11910418,61506.0,61478.0,0.08089582]
[1719971720671,0.11910418,61515.0,61499.0,0.130083]
[1719971720889,0.01920624,61521.0,61499.0,0.26566337]
[1719971721093,0.065149,61524.0,61508.0,0.260127]
[1719971721094,0.13528799,61520.0,61508.0,0.260127]
[1719971721301,0.68015582,61568.0,61516.0,0.08089582]
[1719971721302,0.01920624,61540.0,61516.0,0.08089582]
[1719971721505,0.01921867,61540.0,61538.0,0.13]
[1719971721710,0.13047705,61539.0,61538.0,0.260001]
[1719971721947,0.01922328,61556.0,61544.0,0.25056337]
[1719971722245,0.3,61581.0,61551.0,0.25056337]
[1719971722246,0.01922328,61576.0,61551.0,0.25056337]
[1719971722512,0.01922328,61576.0,61524.0,0.260057]
[1719971722513,0.04943663,61587.0,61572.0,0.129928]
[1719971722760,0.2,61600.0,61552.0,0.1602988]
[1719971722761,0.2954666,61586.0,61569.0,0.259867]
[1719971722987,0.2954666,61586.0,61567.0,0.25056337]
[1719971722988,0.1602988,61586.0,61567.0,0.25056337]
[1719971723196,0.1602988,61586.0,61552.0,0.1602988]
[1719971723197,0.1602988,61586.0,61570.0,0.00386114]
[1719971723410,0.04943663,61608.0,61581.0,0.25056337]
[1719971723619,0.24412822,61598.0,61586.0,0.25056337]
[1719971723826,0.3,61603.0,61587.0,0.00289585]
[1719971724029,0.04943663,61614.0,61591.0,0.25056337]
[1719971724237,0.04943663,61614.0,61587.0,0.00289585]
[1719971724238,0.1602988,61613.0,61597.0,0.25056337]
[1719971724607,0.1602988,61613.0,61602.0,0.129864]
[1719971724846,0.2,61655.0,61612.0,0.25056337]
[1719971725058,0.06,61644.0,61613.0,0.00450434]
[1719971725261,0.2999,61646.0,61635.0,0.129794]
[1719971725459,0.4372,61654.0,61646.0,0.25056337]
[1719971725460,0.0162,61654.0,61646.0,0.25056337]
[1719971725849,0.0162,61654.0,61636.0,0.00358778]
[1719971725850,0.0162,61654.0,61648.0,0.25046337]
[1719971726057,0.0162,61654.0,61630.0,0.1932]
[1719971726058,0.0162,61654.0,61653.0,0.25046337]
[1719971726263,0.0162,61654.0,61653.0,0.38361004]
[1719971726473,0.0162,61654.0,61653.0,0.80342484]
[1719971726598,0.0162,61654.0,61653.0,0.54390884]
[1719971726802,0.2999,61645.0,61631.0,0.48093494]
[1719971726988,0.3,61648.0,61630.0,0.1932]
[1719971726989,0.18293483,61644.0,61632.0,0.48093494]
[1719971727188,0.2999,61631.0,61630.0,0.1932]
[1719971727391,0.45410032,61631.0,61630.0,0.1932]
[1719971727593,0.45410032,61631.0,61585.0,0.408303]
[1719971727594,0.2999,61620.0,61613.0,0.25036337]
[1719971727811,0.2999,61620.0,61600.0,0.259736]
[1719971727812,0.634,61633.0,61629.0,0.25036337]
[1719971728016,0.0162,61641.0,61614.0,0.1602988]
[1719971728017,0.0162,61641.0,61640.0,0.25036337]
[1719971728244,0.6161,61641.0,61639.0,0.25036337]
[1719971728479,0.41746711,61640.0,61620.0,0.129827]
[1719971728654,0.5999,61638.0,61629.0,0.25036337]
[1719971728853,0.08015582,61633.0,61627.0,0.25036337]
[1719971729060,0.2999,61633.0,61627.0,0.25036337]
[1719971729261,0.2999,61651.0,61640.0,0.38014837]
[1719971729462,0.2999,61651.0,61640.0,0.79991817]
[1719971729666,0.08015582,61650.0,61646.0,0.25026337]
[1719971729898,0.2999,61652.0,61640.0,0.1602988]
[1719971729899,0.3372197,61649.0,61640.0,0.259569]
[1719971730126,0.01789955,61655.0,61654.0,0.25016337]
[1719971730309,0.0162,61655.0,61654.0,0.63933137]
[1719971730510,0.0162,61655.0,61654.0,0.89874337]
[1719971730970,0.0162,61655.0,61654.0,0.54001817]
[1719971731358,0.0162,61655.0,61654.0,0.79953017]
[1719971731578,0.67424196,61686.0,61654.0,0.79953017]
[1719971731579,0.0162,61671.0,61670.0,0.37968537]
[1719971731765,0.0162,61671.0,61670.0,0.79942917]
[1719971731900,0.0162,61671.0,61670.0,0.24996337]
[1719971732106,0.37691569,61671.0,61670.0,0.24996337]
[1719971732358,0.35326085,61671.0,61670.0,0.53998417]
[1719971732555,0.35326085,61671.0,61670.0,0.79942917]
[1719971732763,0.0246722,61676.0,61675.0,0.64856]
[1719971732964,0.0246722,61676.0,61675.0,0.24996337]
[1719971733177,0.86731947,61676.0,61668.0,0.24996337]
[1719971733380,0.92280309,61675.0,61670.0,0.24996337]
[1719971733628,0.89071305,61674.0,61673.0,0.24986337]
[1719971733803,0.84956825,61674.0,61673.0,0.24976337]
[1719971734027,0.2999,61669.0,61660.0,0.24976337]
[1719971734222,0.92280309,61668.0,61667.0,0.24976337]
[1719971734540,0.92280309,61668.0,61638.0,0.476]
[1719971734541,0.2999,61659.0,61648.0,0.24976337]
[1719971734762,0.2999,61659.0,61638.0,0.176]
[1719971734763,0.2999,61657.0,61656.0,0.37941537]
[1719971734958,1.65153497,61657.0,61656.0,0.80661291]
[1719971735164,0.0246722,61676.0,61673.0,0.63871137]
[1719971735431,0.0246722,61676.0,61675.0,0.37927537]
[1719971735661,0.53016327,61676.0,61675.0,1.31784617]
[1719971735885,0.38850582,61702.0,61700.0,0.89786037]
[1719971735886,0.67399095,61701.0,61700.0,0.89786037]
[1719971736111,0.00845,61702.0,61701.0,0.37922037]
[1719971736317,0.14319313,61702.0,61701.0,0.24956337]
[1719971736516,0.34533606,61702.0,61699.0,0.24956337]
[1719971736716,0.08015582,61700.0,61687.0,0.24956337]
[1719971736947,0.08015582,61700.0,61676.0,0.48093494]
[1719971736948,0.08015582,61688.0,61676.0,0.48093494]
[1719971737153,0.33688606,61687.0,61686.0,0.24956337]
[1719971737392,0.63678606,61687.0,61686.0,0.17935097]
[1719971737599,0.2999,61686.0,61676.0,0.48093494]
[1719971737796,0.70640997,61685.0,61684.0,0.389079]
[1719971737999,1.38040092,61685.0,61684.0,0.1602988]
[1719971738200,0.2999,61681.0,61660.0,0.48083494]
[1719971738424,1.27963563,61680.0,61666.0,0.129729]
[1719971738635,0.08015582,61667.0,61660.0,0.34633431]
[1719971738854,0.08015582,61676.0,61661.0,0.37559494]
[1719971738855,0.32688606,61666.0,61661.0,0.37559494]
[1719971739057,0.1348163,61665.0,61657.0,0.3353]
[1719971739258,0.08015582,61671.0,61657.0,0.3353]
[1719971739259,0.1348163,61664.0,61659.0,0.129744]
[1719971739478,0.31497212,61663.0,61659.0,0.10411919]
[1719971739687,2.0013558,61662.0,61659.0,0.12495657]
[1719971739913,2.0013558,61662.0,61640.0,0.1667]
[1719971739914,0.5999,61655.0,61640.0,0.296484]
[1719971740116,0.5999,61655.0,61636.0,0.48093494]
[1719971740117,0.2999,61645.0,61636.0,0.48093494]
[1719971740329,0.1348163,61644.0,61637.0,0.129792]
[1719971740527,0.2999,61645.0,61624.0,0.259637]
[1719971740528,0.2999,61638.0,61624.0,0.259637]
[1719971740742,0.1348163,61637.0,61636.0,0.129794]
[1719971740941,0.1348163,61637.0,61636.0,0.2900928]
[1719971741239,0.40434021,61637.0,61636.0,0.1602988]
[1719971741422,1.17851792,61637.0,61626.0,0.129814]
[1719971741619,1.17851792,61637.0,61627.0,0.1602988]
[1719971741620,0.08015582,61634.0,61627.0,0.1602988]
[1719971741792,0.33724321,61633.0,61628.0,0.1602988]
[1719971742001,0.13489728,61632.0,61628.0,0.1602988]
[1719971742205,0.84272214,61632.0,61628.0,0.1602988]
[1719971742407,0.40470576,61631.0,61628.0,0.1602988]
[1719971742596,0.13490192,61630.0,61628.0,0.1602988]
[1719971742810,0.43480192,61629.0,61628.0,0.1602988]
[1719971743000,0.5999,61620.0,61601.0,0.1863]
[1719971743201,1.06944269,61629.0,61584.0,0.48093494]
[1719971743202,0.08015582,61605.0,61585.0,0.3]
[1719971743401,0.13490192,61605.0,61601.0,0.065024]
[1719971743782,0.40470576,61605.0,61601.0,0.065024]
[1719971744023,0.40470576,61604.0,61603.0,0.65088695]
[1719971744188,0.21857771,61604.0,61603.0,0.33025081]
[1719971744325,0.21857771,61604.0,61603.0,0.1715988]
[1719971744532,0.21857771,61604.0,61603.0,0.1732988]
[1719971744736,0.21857771,61604.0,61603.0,0.1602988]
[1719971744933,0.21857771,61604.0,61586.0,0.016]
[1719971744934,0.13004799,61597.0,61596.0,0.065019]
[1719971745176,0.08015582,61603.0,61596.0,0.1602988]
[1719971745331,0.21857771,61604.0,61603.0,0.16995201]
[1719971745536,0.21847771,61604.0,61603.0,0.1602988]
[1719971745773,0.14624799,61631.0,61603.0,0.1602988]
[1719971745774,0.01926953,61619.0,61612.0,0.42215201]
[1719971745976,0.08015582,61613.0,61612.0,0.2522]
[1719971746173,0.08015582,61613.0,61597.0,0.2522]
[1719971746523,0.38005582,61613.0,61592.0,0.0623]
[1719971746696,0.38005582,61613.0,61586.0,0.11036301]
[1719971746697,0.01926741,61596.0,61586.0,0.11036301]
[1719971746835,0.01926741,61595.0,61586.0,0.11036301]
[1719971747038,0.08015582,61587.0,61568.0,0.92633494]
[1719971747297,0.08015582,61580.0,61568.0,0.92633494]
[1719971747596,0.08015582,61580.0,61569.0,0.065043]
[1719971747597,0.84953699,61570.0,61569.0,0.065043]
[1719971747802,0.08015582,61571.0,61569.0,0.48093494]
[1719971748010,0.20249237,61570.0,61568.0,0.1932]
[1719971748259,0.08015582,61569.0,61568.0,0.1932]
[1719971748456,0.18963699,61591.0,61568.0,0.1932]
[1719971748457,0.18963699,61602.0,61571.0,0.32056163]
[1719971748657,0.18963699,61602.0,61573.0,0.11036301]
[1719971748658,0.01926268,61580.0,61573.0,0.11036301]
[1719971748881,0.01926268,61580.0,61569.0,0.0019]
[1719971748882,0.20248706,61579.0,61577.0,0.11036301]
[1719971749110,0.20248706,61579.0,61569.0,0.0019]
[1719971749111,0.01927088,61598.0,61597.0,0.2]
[1719971749302,0.01927088,61598.0,61572.0,0.08015582]
[1719971749303,0.08015582,61626.0,61608.0,0.11036301]
[1719971749515,0.3,61637.0,61618.0,0.11036301]
[1719971749516,0.20237131,61625.0,61618.0,0.11036301]
[1719971749725,0.08015582,61614.0,61599.0,0.11036301]
[1719971749954,0.08015582,61614.0,61597.0,0.0151]
[1719971749955,0.08015582,61607.0,61597.0,0.0311]
[1719971750172,0.20237131,61613.0,61602.0,0.48093494]
[1719971750173,0.47223617,61613.0,61602.0,0.48093494]
[1719971750420,0.20241305,61606.0,61599.0,0.11036301]
[1719971750628,0.20241305,61605.0,61601.0,0.11036301]
[1719971750831,0.20241305,61604.0,61603.0,0.11036301]
[1719971751076,0.26986879,61612.0,61600.0,0.218]
[1719971751305,0.26986879,61612.0,61611.0,0.1602988]
[1719971751575,0.26986879,61612.0,61611.0,0.1344973]
[1719971751807,0.27486879,61612.0,61611.0,0.1602988]
[1719971752028,0.18963699,61606.0,61601.0,0.1602988]
[1719971752277,0.08415582,61602.0,61601.0,0.1602988]
[1719971752707,0.08415582,61602.0,61601.0,0.08999815]
[1719971753153,0.08015582,61602.0,61601.0,0.08999815]
[1719971753367,0.2999,61591.0,61576.0,0.48093494]
[1719971753527,0.08015582,61602.0,61576.0,0.48093494]
[1719971753528,0.08015582,61577.0,61576.0,0.48093494]
[1719971753777,0.35020396,61577.0,61576.0,0.48093494]
[1719971754008,0.004,61576.0,61568.0,0.1932]
[1719971754216,0.65010396,61577.0,61568.0,0.1932]
[1719971754217,0.08015582,61569.0,61568.0,0.1932]
[1719971754421,0.13502668,61569.0,61568.0,0.1932]
[1719971754831,0.13902668,61569.0,61568.0,0.1932]
[1719971755029,0.40907482,61569.0,61568.0,0.3534988]
[1719971755268,0.74265026,61569.0,61568.0,0.3534988]
[1719971755478,0.74265026,61569.0,61568.0,0.35024514]
[1719971755986,1.41781946,61569.0,61568.0,0.35024514]
[1719971756395,1.41781946,61569.0,61568.0,0.18994634]
[1719971756396,1.72181946,61569.0,61568.0,0.18994634]
[1719971756595,1.42181946,61569.0,61568.0,0.35332926]
[1719971756806,1.41781946,61569.0,61568.0,0.35024514]
[1719971757018,1.41771946,61569.0,61568.0,0.35024514]
[1719971757219,1.41771946,61569.0,61568.0,0.35332926]
[1719971757401,1.41771946,61569.0,61568.0,0.35024514]
[1719971757626,1.41771946,61569.0,61568.0,0.35348282]
[1719971757866,1.41761946,61569.0,61568.0,0.35348282]
[1719971758085,1.41761946,61569.0,61568.0,0.37324514]
[1719971758294,1.41761946,61569.0,61568.0,0.37648203]
[1719971758495,1.01274464,61569.0,61568.0,0.37648203]
[1719971758728,0.33757544,61569.0,61568.0,0.37324514]
[1719971759066,0.60761039,61569.0,61568.0,0.37647189]
[1719971759290,0.33754369,61600.0,61570.0,0.2]
[1719971759492,0.33754369,61600.0,61585.0,0.1602988]
[1719971759695,0.33754369,61600.0,61599.0,0.1602988]
[1719971759894,0.33754369,61600.0,61599.0,0.00281639]
[1719971760100,0.33754369,61600.0,61599.0,0.1602988]
[1719971760298,0.33754369,61600.0,61599.0,0.16311519]
[1719971760737,0.0005,61612.0,61599.0,0.1602988]
[1719971760972,0.0005,61612.0,61602.0,0.1602988]
[1719971761139,0.08015582,61611.0,61602.0,0.1602988]
[1719971761302,0.08005582,61611.0,61602.0,0.1602988]
[1719971761503,0.08005582,61604.0,61582.0,0.48093494]
[1719971761705,0.2,61602.0,61585.0,0.1602988]
[1719971761916,0.0005,61612.0,61598.0,0.48093494]
[1719971762154,0.0005,61612.0,61585.0,0.1602988]
[1719971762155,0.20243967,61601.0,61585.0,0.1602988]
[1719971763171,0.0005,61612.0,61586.0,0.023]
[1719971763476,0.0005,61612.0,61577.0,0.4862]
[1719971763477,0.08015582,61602.0,61592.0,0.1602988]
[1719971763855,0.08015582,61595.0,61592.0,0.1602988]
[1719971764420,0.08015582,61595.0,61571.0,0.3185]
[1719971764421,0.2,61585.0,61571.0,0.3185]
[1719971764619,0.3,61590.0,61579.0,0.48093494]
[1719971764620,0.1999,61584.0,61579.0,0.48093494]
[1719971764787,0.08015582,61587.0,61571.0,0.3025]
[1719971764788,0.1999,61585.0,61580.0,0.1602988]
[1719971764997,0.3,61583.0,61568.0,0.18994634]
[1719971765137,0.08015582,61578.0,61569.0,0.1602988]
[1719971765495,0.1998,61584.0,61569.0,0.1602988]
[1719971765712,0.08015582,61577.0,61569.0,0.1602988]
[1719971765867,0.08015582,61570.0,61568.0,0.18994634]
[1719971766270,0.3,61569.0,61568.0,0.18994634]
[1719971766459,1.06235926,61569.0,61568.0,0.18994634]
[1719971766683,1.41342754,61569.0,61568.0,0.18994634]
[1719971766904,1.35342754,61569.0,61568.0,0.18994634]
[1719971767421,0.40237418,61569.0,61568.0,0.18994634]
[1719971767564,0.40227418,61569.0,61568.0,0.18994634]
[1719971767760,0.33752159,61569.0,61568.0,0.35828514]
[1719971768061,0.15432422,61569.0,61568.0,0.35828514]
[1719971768286,0.13504741,61569.0,61568.0,0.19798634]
[1719971768484,0.63474741,61569.0,61568.0,0.19798634]
[1719971768711,0.93474741,61569.0,61568.0,0.19798634]
[1719971768982,0.99474741,61569.0,61568.0,0.19798634]
[1719971769404,1.09474741,61569.0,61568.0,0.19798634]
[1719971769843,0.98679306,61569.0,61568.0,0.19798634]
[1719971770043,0.98679306,61569.0,61549.0,0.009229]
[1719971770248,0.4997,61556.0,61549.0,0.009229]
[1719971770489,0.93985582,61556.0,61549.0,0.009229]
[1719971770685,0.96230311,61556.0,61549.0,0.009229]
[1719971770890,0.96230311,61556.0,61539.0,0.009273]
[1719971770891,0.3,61544.0,61539.0,0.009273]
[1719971771107,0.8597,61540.0,61539.0,0.009273]
[1719971771266,0.99478485,61540.0,61539.0,0.009273]
[1719971771445,1.09468485,61540.0,61539.0,0.009273]
[1719971772052,1.09468485,61540.0,61539.0,0.1695718]
[1719971772053,0.13508485,61540.0,61539.0,0.1695718]
[1719971772402,0.13508485,61540.0,61539.0,0.009273]
[1719971772403,0.43508485,61540.0,61539.0,0.009273]
[1719971772883,0.63468485,61540.0,61539.0,0.009273]
[1719971773130,0.79498365,61540.0,61539.0,0.009273]
[1719971773355,1.15498365,61540.0,61539.0,0.009273]
[1719971773587,1.25498365,61540.0,61539.0,0.009273]
[1719971773810,1.50186338,61540.0,61539.0,0.009273]
[1719971774051,1.53186338,61540.0,61539.0,0.009273]
[1719971774295,0.8596,61537.0,61536.0,0.00924]
[1719971774558,1.25501984,61537.0,61536.0,0.00924]
[1719971774773,0.73472104,61537.0,61536.0,0.00924]
[1719971774974,1.09472104,61537.0,61536.0,0.00924]
[1719971775177,1.28156458,61537.0,61536.0,0.00924]
[1719971775406,1.34156458,61537.0,61536.0,0.00924]
[1719971775577,1.50186338,61537.0,61536.0,0.00924]
[1719971775785,1.7045616,61537.0,61536.0,0.00924]
[1719971775991,1.3445616,61537.0,61536.0,0.00924]
[1719971776193,0.7996,61523.0,61521.0,0.48093494]
[1719971776489,1.19745877,61523.0,61522.0,0.01251497]
[1719971776712,1.19745877,61523.0,61522.0,0.00924]
[1719971776713,0.83745877,61523.0,61522.0,0.00924]
[1719971777668,0.53745877,61523.0,61522.0,0.1695388]
[1719971777869,0.33785877,61523.0,61522.0,0.1733598]
[1719971778080,0.13514351,61523.0,61522.0,0.1733598]
[1719971778283,0.13514351,61524.0,61522.0,0.1695388]
[1719971778492,0.21885664,61529.0,61523.0,0.16357887]
[1719971778848,0.13512008,61528.0,61524.0,0.00325028]
[1719971779047,0.21885664,61529.0,61525.0,0.1602988]
[1719971779048,0.13512008,61527.0,61525.0,0.1602988]
[1719971779234,0.1996,61529.0,61526.0,0.00325019]
[1719971779459,0.1996,61529.0,61527.0,0.1602988]
[1719971779647,0.13511534,61528.0,61525.0,0.023]
[1719971779821,0.00963028,61526.0,61525.0,0.023]
[1719971780022,0.00963028,61528.0,61525.0,0.1602988]
[1719971780233,0.00963028,61528.0,61526.0,0.3434]
[1719971780434,0.00804,61537.0,61527.0,0.1089]
[1719971780610,0.13507986,61536.0,61528.0,0.02681294]
[1719971780814,0.19760019,61554.0,61535.0,0.1602988]
[1719971781042,0.0192626,61543.0,61536.0,0.023]
[1719971781213,0.19760019,61554.0,61537.0,0.1602988]
[1719971781214,0.0192626,61541.0,61537.0,0.1602988]
[1719971781432,0.21523378,61542.0,61537.0,0.1602988]
[1719971781433,0.33770657,61540.0,61538.0,0.00284502]
[1719971781705,0.08015582,61548.0,61539.0,0.1602988]
[1719971781888,0.47013882,61541.0,61540.0,0.00325145]
[1719971782098,0.47013882,61541.0,61527.0,0.1089]
[1719971782099,0.130005,61536.0,61527.0,0.1089]
[1719971782317,0.33777417,61535.0,61528.0,0.16409216]
[1719971782524,0.3377757,61534.0,61528.0,0.16409216]
[1719971782788,0.41793152,61533.0,61528.0,0.16409216]
[1719971783018,0.58165862,61533.0,61529.0,0.00324995]
[1719971783260,0.19760019,61546.0,61529.0,0.00324995]
[1719971783261,0.33782322,61532.0,61530.0,0.1602988]
[1719971783459,0.33772322,61531.0,61530.0,0.1602988]
[1719971783861,0.33762322,61531.0,61530.0,0.1602988]